{"text_format":"3","workbook":"xlsx","n_sheets":1,"sheets":["KÖLTSÉGELSZÁMOLÁS"],"not_rendered":{"defined_names":4},"read":"whole","date_system":"1900"}

{"sheet":"KÖLTSÉGELSZÁMOLÁS","index":0,"n_rows":22,"n_cols":12,"rows_kept":22,"merged":[[1,2,1,3],[1,5,1,6],[3,2,3,3],[3,6,3,7],[3,10,3,11],[4,2,4,3],[4,6,4,7],[4,10,4,11],[20,2,20,4],[20,6,20,8],[21,2,21,4],[21,6,21,8]]}
[null,"KÖLTSÉGELSZÁMOLÁS",{"$nulls":8},"Csak munkahelyi használatra"]
[null,"CÉL:",null,null,"ELSZÁMOLÁS SZÁMA:",null,null,"KIFIZETÉSI IDŐSZAK","KEZDETE:",{"$f":"IF(COUNTA(KöltségAdatok[Dátum])=0,\"\",MIN(KöltségAdatok[Dátum]))","v":""},"VÉGE:",{"$f":"IF(COUNTA(KöltségAdatok[Dátum])=0,\"\",MAX(KöltségAdatok[Dátum]))","v":""}]
[null,"ALKALMAZOTT ADATAI:"]
[null,"NÉV",{"$nulls":3},"BEOSZTÁS",{"$nulls":3},"tajszám"]
[null,"RÉSZLEG",{"$nulls":3},"FELETTES",{"$nulls":3},"ALKALMAZOTT AZONOSÍTÓJA"]
[]
[null,"Dátum","Ügyfél","Leírás","Szállás","Közlekedés","Üzemanyag","Étkezés","Telefonszám","Reprezentáció","Egyéb","Összesen"]
[{"$nulls":11},{"$f":"SUM(KöltségAdatok[[#This Row],[Szállás]:[Egyéb]])","v":{"v":0,"d":"0.00 Ft"}}]
[{"$nulls":11},{"$f":"SUM(KöltségAdatok[[#This Row],[Szállás]:[Egyéb]])","v":{"v":0,"d":"0.00 Ft"}}]
[{"$nulls":11},{"$f":"SUM(KöltségAdatok[[#This Row],[Szállás]:[Egyéb]])","v":{"v":0,"d":"0.00 Ft"}}]
[{"$nulls":11},{"$f":"SUM(KöltségAdatok[[#This Row],[Szállás]:[Egyéb]])","v":{"v":0,"d":"0.00 Ft"}}]
[{"$nulls":11},{"$f":"SUM(KöltségAdatok[[#This Row],[Szállás]:[Egyéb]])","v":{"v":0,"d":"0.00 Ft"}}]
[{"$nulls":11},{"$f":"SUM(KöltségAdatok[[#This Row],[Szállás]:[Egyéb]])","v":{"v":0,"d":"0.00 Ft"}}]
[{"$nulls":11},{"$f":"SUM(KöltségAdatok[[#This Row],[Szállás]:[Egyéb]])","v":{"v":0,"d":"0.00 Ft"}}]
[{"$nulls":11},{"$f":"SUM(KöltségAdatok[[#This Row],[Szállás]:[Egyéb]])","v":{"v":0,"d":"0.00 Ft"}}]
[{"$nulls":11},{"$f":"SUM(KöltségAdatok[[#This Row],[Szállás]:[Egyéb]])","v":{"v":0,"d":"0.00 Ft"}}]
[{"$nulls":11},{"$f":"SUM(KöltségAdatok[[#This Row],[Szállás]:[Egyéb]])","v":{"v":0,"d":"0.00 Ft"}}]
[{"$nulls":11},{"$f":"SUM(KöltségAdatok[[#This Row],[Szállás]:[Egyéb]])","v":{"v":0,"d":"0.00 Ft"}}]
[null,"Összesen",null,null,{"$f":"SUBTOTAL(109,KöltségAdatok[Szállás])","v":{"v":0,"d":"0.00 Ft"}},{"$f":"SUBTOTAL(109,KöltségAdatok[Közlekedés])","v":{"v":0,"d":"0.00 Ft"}},{"$f":"SUBTOTAL(109,KöltségAdatok[Üzemanyag])","v":{"v":0,"d":"0.00 Ft"}},{"$f":"SUBTOTAL(109,KöltségAdatok[Étkezés])","v":{"v":0,"d":"0.00 Ft"}},{"$f":"SUBTOTAL(109,KöltségAdatok[Telefonszám])","v":{"v":0,"d":"0.00 Ft"}},{"$f":"SUBTOTAL(109,KöltségAdatok[Reprezentáció])","v":{"v":0,"d":"0.00 Ft"}},{"$f":"SUBTOTAL(109,KöltségAdatok[Egyéb])","v":{"v":0,"d":"0.00 Ft"}},{"$f":"SUBTOTAL(109,KöltségAdatok[Összesen])","v":{"v":0,"d":"0.00 Ft"}}]
[{"$nulls":10},"RÉSZÖSSZEG",{"$f":"KöltségAdatok[[#Totals],[Összesen]]","v":{"v":0,"d":"0.00 Ft"}}]
[null,"JÓVÁHAGYTA:",{"$nulls":3},"MEGJEGYZÉSEK: ",{"$nulls":4},"ELŐLEGEK",{"v":0,"d":"0.00 Ft"}]
[{"$nulls":10},"ÖSSZESEN",{"$f":"Részösszeg-Előlegek","v":{"v":0,"d":"0.00 Ft"}}]